fUST/lending_fUST_20240902
["ID","MTS","AMOUNT","RATE_DAILY","PERIOD"]
[336887725,1725233443815,-500.0,0.00024657,2]
[336887726,1725233443825,-500.0,0.00024657,2]
[336887727,1725233443834,-14185.66,0.00024657,2]
[336887728,1725233443844,-500.0,0.00024657,2]
[336887729,1725233443854,-1568.11,0.00024657,2]
[336887730,1725233443863,-500.0,0.00024657,2]
[336887731,1725233443873,-678.57,0.00024657,2]
[336887732,1725233443882,-500.0,0.00024657,2]
[336887733,1725233443893,-415.81711232,0.00024657,2]
[336887734,1725233443902,-500.0,0.00024657,2]
[336887735,1725233443911,-1769.13,0.00024657,2]
[336887736,1725233443922,-500.0,0.00024657,2]
[336887737,1725233443931,-500.0,0.00024657,2]
[336887738,1725233443941,-500.0,0.00024657,2]
[336887739,1725233443950,-1948.8,0.00024657,2]
[336887740,1725233443960,-500.0,0.00024657,2]
[336887741,1725233443969,-531.01,0.00024657,2]
[336887742,1725233443979,-1076.27,0.00024657,2]
[336887743,1725233443988,-500.0,0.00024657,2]
[336887744,1725233443998,-2754.06,0.00024657,2]
[336887745,1725233444007,-500.0,0.00024657,2]
[336887746,1725233444017,-500.0,0.00024657,2]
[336887747,1725233444027,-635.95,0.00024657,2]
[336887748,1725233444036,-500.0,0.00024657,2]
[336887749,1725233444050,-500.0,0.00024657,2]
[336887750,1725233444062,-501.58213849,0.00024657,2]
[336887751,1725233444071,-500.0,0.00024657,2]
[336887752,1725233444081,-672.12,0.00024657,2]
[336887753,1725233444092,-500.0,0.00024657,2]
[336887754,1725233444101,-500.0,0.00024657,2]
[336887755,1725233444111,-2363.96,0.00024657,2]
[336887756,1725233444120,-779.93,0.00024657,2]
[336887757,1725233444129,-2592.72,0.00024657,2]
[336887758,1725233444139,-500.0,0.00024657,2]
[336887759,1725233444149,-2904.86,0.00024657,2]
[336887760,1725233444160,-500.0,0.00024657,2]
[336887761,1725233444170,-500.0,0.00024657,2]
[336887762,1725233444179,-500.0,0.00024657,2]
[336887763,1725233444189,-500.0,0.00024657,2]
[336887764,1725233444199,-794.89,0.00024657,2]
[336887765,1725233444208,-500.0,0.00024657,2]
[336887766,1725233444218,-500.0,0.00024657,2]
[336887767,1725233444227,-1368.99,0.00024657,2]
[336887768,1725233444236,-500.0,0.00024657,2]
[336887769,1725233444246,-500.0,0.00024657,2]
[336887770,1725233444256,-500.0,0.00024657,2]
[336887771,1725233444265,-1021.59,0.00024657,2]
[336887772,1725233444274,-500.0,0.00024657,2]
[336887773,1725233444284,-500.0,0.00024657,2]
[336887774,1725233444294,-500.0,0.00024657,2]
[336887775,1725233444304,-500.0,0.00024657,2]
[336887776,1725233444313,-500.0,0.00024657,2]
[336887777,1725233444322,-610.36482158,0.00024657,2]
[336887778,1725233444331,-1683.33,0.00024657,2]
[336887779,1725233444340,-803.65,0.00024657,2]
[336887780,1725233444350,-500.0,0.00024657,2]
[336887781,1725233444359,-500.0,0.00024657,2]
[336887782,1725233444368,-500.0,0.00024657,2]
[336887783,1725233444377,-695.67,0.00024657,2]
[336887784,1725233444387,-500.0,0.00024657,2]
[336887785,1725233444396,-500.0,0.00024657,2]
[336887787,1725233444406,-500.0,0.00024657,2]
[336887789,1725233444415,-500.0,0.00024657,2]
[336887791,1725233444425,-1497.58,0.00024657,2]
[336887794,1725233444434,-500.0,0.00024657,2]
[336887796,1725233444444,-1619.26,0.00024657,2]
[336887798,1725233444453,-1579.75,0.00024657,2]
[336887800,1725233444463,-500.0,0.00024657,2]
[336887802,1725233444472,-652.33,0.00024657,2]
[336887804,1725233444481,-500.0,0.00024657,2]
[336887806,1725233444490,-500.0,0.00024657,2]
[336887808,1725233444507,-1364.17,0.00024657,2]
[336887810,1725233444520,-500.0,0.00024657,2]
[336887813,1725233444530,-771.48,0.00024657,2]
[336887814,1725233444540,-500.0,0.00024657,2]
[336887815,1725233444551,-1158.56,0.00024657,2]
[336887816,1725233444561,-508.11,0.00024657,2]
[336887817,1725233444571,-500.0,0.00024657,2]
[336887818,1725233444581,-500.0,0.00024657,2]
[336887819,1725233444591,-500.0,0.00024657,2]
[336887820,1725233444600,-802.51,0.00024657,2]
[336887821,1725233444610,-1289.72,0.00024657,2]
[336887822,1725233444619,-568.68681265,0.00024657,2]
[336887823,1725233444628,-502.1027319,0.00024657,2]
[336887824,1725233444638,-500.0,0.00024657,2]
[336887825,1725233444648,-500.0,0.00024657,2]
[336887827,1725233444658,-500.0,0.00024657,2]
[336887829,1725233444668,-502.07144363,0.00024657,2]
[336887831,1725233444678,-500.0,0.00024657,2]
[336887832,1725233444688,-500.0,0.00024657,2]
[336887833,1725233444697,-628.61,0.00024657,2]
[336887834,1725233444707,-500.0,0.00024657,2]
[336887835,1725233444717,-500.0,0.00024657,2]
[336887836,1725233444727,-1891.36,0.00024657,2]
[336887837,1725233444737,-1291.81,0.00024657,2]
[336887838,1725233444746,-500.0,0.00024657,2]
[336887839,1725233444756,-697.16,0.00024657,2]
[336887840,1725233444766,-1697.09,0.00024657,2]
[336887841,1725233444776,-502.31720496,0.00024657,2]
[336887843,1725233444788,-500.0,0.00024657,2]
[336887844,1725233444801,-501.19927622,0.00024657,2]
[336887845,1725233444811,-500.0,0.00024657,2]
[336887846,1725233444821,-500.0,0.00024657,2]
[336887848,1725233444831,-500.0,0.00024657,2]
[336887849,1725233444840,-500.0,0.00024657,2]
[336887850,1725233444850,-500.0,0.00024657,2]
[336887851,1725233444860,-500.0,0.00024657,2]
[336887853,1725233444872,-500.0,0.00024657,2]
[336887854,1725233444882,-500.0,0.00024657,2]
[336887855,1725233444892,-500.0,0.00024657,2]
[336887856,1725233444902,-500.0,0.00024657,2]
[336887857,1725233444912,-500.0,0.00024657,2]
[336887858,1725233444922,-1800.22,0.00024657,2]
[336887859,1725233444932,-500.0,0.00024657,2]
[336887860,1725233444942,-565.1,0.00024657,2]
[336887861,1725233444952,-500.0,0.00024657,2]
[336887862,1725233444962,-500.0,0.00024657,2]
[336887863,1725233444972,-500.0,0.00024657,2]
[336887864,1725233444981,-500.0,0.00024657,2]
[336887865,1725233444991,-625.64,0.00024657,2]
[336887866,1725233445000,-1207.6,0.00024657,2]
[336887867,1725233445010,-729.96,0.00024657,2]
[336887868,1725233445020,-501.77892621,0.00024657,2]
[336887869,1725233445029,-500.0,0.00024657,2]
[336887870,1725233445039,-493.77447833,0.00024657,2]
[336887871,1725233445051,-2946.26,0.00024657,2]
[336887872,1725233445062,-500.0,0.00024657,2]
[336887873,1725233445072,-504.54,0.00024657,2]
[336887874,1725233445082,-500.0,0.00024657,2]
[336887876,1725233445092,-8915.77,0.00024657,2]
[336887879,1725233445102,-500.0,0.00024657,2]
[336887881,1725233445112,-1725.92,0.00024657,2]
[336887883,1725233445122,-500.0,0.00024657,2]
[336887884,1725233445132,-500.62487102,0.00024657,2]
[336887885,1725233445142,-500.0,0.00024657,2]
[336887886,1725233445152,-500.0,0.00024657,2]
[336887887,1725233445162,-500.0,0.00024657,2]
[336887888,1725233445172,-1410.55,0.00024657,2]
[336887889,1725233445186,-1193.98,0.00024657,2]
[336887890,1725233445196,-3356.77,0.00024657,2]
[336887891,1725233445206,-523.56,0.00024657,2]
[336887892,1725233445216,-500.0,0.00024657,2]
[336887893,1725233445226,-1701.97,0.00024657,2]
[336887894,1725233445235,-500.0,0.00024657,2]
[336887895,1725233445244,-1240.79,0.00024657,2]
[336887896,1725233445253,-2345.51,0.00024657,2]
[336887897,1725233445263,-500.0,0.00024657,2]
[336887898,1725233445274,-500.63026469,0.00024657,2]
[336887899,1725233445284,-500.0,0.00024657,2]
[336887900,1725233445297,-505.74567991,0.00024657,2]
[336887901,1725233445306,-500.0,0.00024657,2]
[336887902,1725233445316,-500.0,0.00024657,2]
[336887903,1725233445325,-503.96557598,0.00024657,2]
[336887904,1725233445335,-500.0,0.00024657,2]
[336887905,1725233445344,-500.0,0.00024657,2]
[336887906,1725233445354,-500.0,0.00024657,2]
[336887907,1725233445364,-500.0,0.00024657,2]
[336887908,1725233445373,-500.0,0.00024657,2]
[336887909,1725233445383,-1963.27,0.00024657,2]
[336887910,1725233445393,-500.0,0.00024657,2]
[336887911,1725233445402,-500.0,0.00024657,2]
[336887912,1725233445412,-5236.57,0.00024657,2]
[336887913,1725233445422,-500.0,0.00024657,2]
[336887914,1725233445432,-595.48,0.00024657,2]
[336887915,1725233445442,-500.0,0.00024657,2]
[336887916,1725233445453,-500.0,0.00024657,2]
[336887917,1725233445463,-512.64148021,0.00024657,2]
[336887918,1725233445473,-500.0,0.00024657,2]
[336887919,1725233445482,-500.0,0.00024657,2]
[336887920,1725233445492,-643.02,0.00024657,2]
[336887921,1725233445502,-500.0,0.00024657,2]
[336887922,1725233445511,-2120.18,0.00024657,2]
[336887923,1725233445521,-1279.5,0.00024657,2]
[336887924,1725233445531,-500.0,0.00024657,2]
[336887925,1725233445541,-500.0,0.00024657,2]
[336887926,1725233445552,-500.0,0.00024657,2]
[336887927,1725233445562,-500.0,0.00024657,2]
[336887928,1725233445571,-500.0,0.00024657,2]
[336887929,1725233445581,-500.0,0.00024657,2]
[336887930,1725233445591,-2008.27,0.00024657,2]
[336887931,1725233445601,-527.81,0.00024657,2]
[336887932,1725233445611,-1425.41,0.00024657,2]
[336887933,1725233445620,-500.0,0.00024657,2]
[336887934,1725233445630,-638.19648141,0.00024657,2]
[336887935,1725233445640,-500.0,0.00024657,2]
[336887936,1725233445650,-380.0,0.00024658,2]
[336887937,1725233445660,-500.0,0.00024673,2]
[336887938,1725233445670,-489.98491869,0.00024694,2]
[336887939,1725233445679,-153.1137214,0.00024752,2]
[336887940,1725233445690,-489.98491869,0.00024763,2]
[336887941,1725233445700,-150.112233,0.000248,3]
[336887942,1725233445709,-1513.59787404,0.00024831,2]
[336887943,1725233445719,-489.98491869,0.00024831,2]
[336887944,1725233445729,-1043.66647761,0.0002489,3]
[336887945,1725233445739,-150.112233,0.000249,4]
[336887946,1725233445748,-57957.46935743,0.000249,2]
[336887947,1725233445758,-150.112233,0.000249,2]
[336887948,1725233445767,-150.112233,0.000249,5]
[336887949,1725233445777,-7305.66534327,0.00024921,3]
[336887950,1725233445788,-3960.48637415,0.00024921,2]
[336887951,1725233445804,-864.97,0.0002493,2]
[336887952,1725233445814,-500.0,0.0002493,2]
[336887953,1725233445824,-591.13188001,0.00024931,2]
[336887954,1725233445835,-642.31456498,0.00024931,2]
[336887955,1725233446007,-500.0,0.00024931,2]
[336887956,1725233446019,-500.0,0.00024931,2]
[336887957,1725233446028,-571.96,0.00024931,2]
[336887958,1725233446038,-500.0,0.00024931,2]
[336887959,1725233446049,-500.0,0.00024931,2]
[336887960,1725233446059,-500.0,0.00024931,2]
[336887961,1725233446069,-500.0,0.00024931,2]
[336887962,1725233446078,-630.32934669,0.00024931,2]
[336887963,1725233446087,-500.0,0.00024931,2]
[336887964,1725233446097,-500.0,0.00024931,2]
[336887965,1725233446106,-500.0,0.00024931,2]
[336887966,1725233446116,-500.0,0.00024931,2]
[336887967,1725233446126,-500.0,0.00024931,2]
[336887968,1725233446135,-500.0,0.00024931,2]
[336887969,1725233446145,-500.0,0.00024931,2]
[336887970,1725233446155,-500.0,0.00024931,2]
[336887971,1725233446164,-524.54605929,0.00024931,2]
[336887972,1725233446174,-500.0,0.00024931,2]
[336887973,1725233446183,-753.39,0.00024931,2]
[336887974,1725233446193,-568.31084428,0.00024931,2]
[336887975,1725233446202,-500.0,0.00024931,2]
[336887976,1725233446212,-502.85223242,0.00024931,2]
[336887977,1725233446222,-500.0,0.00024931,2]
[336887978,1725233446231,-500.0,0.00024931,2]
[336887979,1725233446240,-500.0,0.00024931,2]
[336887980,1725233446250,-500.0,0.00024931,2]
[336887981,1725233446259,-500.0,0.00024931,2]
[336887982,1725233446269,-500.0,0.00024931,2]
[336887983,1725233446278,-500.0,0.00024931,2]
[336887984,1725233446287,-500.0,0.00024931,2]
[336887985,1725233446298,-500.0,0.00024931,2]
[336887986,1725233446308,-500.0,0.00024931,2]
[336887987,1725233446317,-500.0,0.00024931,2]
[336887988,1725233446326,-500.0,0.00024931,2]
[336887989,1725233446336,-500.0,0.00024931,2]
[336887990,1725233446345,-500.0,0.00024931,2]
[336887992,1725233446354,-500.0,0.00024931,2]
[336887993,1725233446363,-500.0,0.00024931,2]
[336887994,1725233446373,-500.0,0.00024931,2]
[336887995,1725233446382,-500.0,0.00024931,2]
[336887996,1725233446392,-537.76895376,0.00024931,2]
[336887997,1725233446402,-500.0,0.00024931,2]
[336887998,1725233446411,-500.0,0.00024931,2]
[336887999,1725233446421,-500.0,0.00024931,2]
[336888000,1725233446430,-500.0,0.00024931,2]
[336888001,1725233446439,-500.0,0.00024931,2]
[336888002,1725233446450,-500.0,0.00024931,2]
[336888003,1725233446460,-500.0,0.00024931,2]
[336888004,1725233446470,-500.0,0.00024931,2]
[336888005,1725233446479,-500.0,0.00024931,2]
[336888006,1725233446488,-249.29684256,0.00024931,2]
[336888007,1725233446497,-500.0,0.00024931,2]
[336888008,1725233446506,-500.0,0.00024931,2]
[336888009,1725233446516,-500.0,0.00024931,2]
[336888010,1725233446525,-532.2,0.00024931,2]
[336888011,1725233446535,-500.0,0.00024931,2]
[336888012,1725233446544,-500.0,0.00024931,2]
[336888014,1725233446554,-609.68,0.00024931,2]
[336888016,1725233446564,-500.0,0.00024931,2]
[336888018,1725233446573,-500.0,0.00024931,2]
[336888019,1725233446583,-500.0,0.00024931,2]
[336888021,1725233446592,-758.27,0.00024931,2]
[336888023,1725233446601,-500.0,0.00024931,2]
[336888025,1725233446610,-500.0,0.00024931,2]
[336888027,1725233446619,-795.29,0.00024931,2]
[336888028,1725233446629,-503.10336476,0.00024931,2]
[336888029,1725233446638,-500.0,0.00024931,2]
[336888030,1725233446648,-500.0,0.00024931,2]
[336888031,1725233446657,-753.32,0.00024931,2]
[336888032,1725233446666,-500.0,0.00024931,2]
[336888034,1725233446675,-500.0,0.00024931,2]
[336888036,1725233446685,-500.0,0.00024931,2]
[336888038,1725233446694,-591.63282331,0.00024931,2]
[336888039,1725233446703,-500.0,0.00024931,2]
[336888041,1725233446714,-500.0,0.00024931,2]
[336888043,1725233446723,-200.0,0.00024931,2]
[336888044,1725233446732,-500.0,0.00024931,2]
[336888045,1725233446741,-298.09377482,0.00024931,2]
[336888046,1725233446750,-500.0,0.00024931,2]
[336888047,1725233446759,-269.60465178,0.00024931,2]
[336888048,1725233446768,-500.0,0.00024931,2]
[336888049,1725233446777,-500.0,0.00024931,2]
[336888050,1725233446790,-500.0,0.00024931,2]
[336888051,1725233446801,-672.7,0.00024931,2]
[336888052,1725233446817,-500.0,0.00024931,2]
[336888053,1725233446826,-500.0,0.00024931,2]
[336888054,1725233446836,-500.0,0.00024931,2]
[336888055,1725233446845,-508.84601125,0.00024931,2]
[336888056,1725233446855,-501.97666087,0.00024931,2]
[336888057,1725233446864,-500.0,0.00024931,2]
[336888058,1725233446876,-1363.94,0.00024931,2]
[336888059,1725233446885,-500.0,0.00024931,2]
[336888060,1725233446895,-911.13,0.00024931,2]
[336888061,1725233446904,-500.0,0.00024931,2]
[336888062,1725233446916,-500.0,0.00024931,2]
[336888063,1725233446926,-500.0,0.00024931,2]
[336888064,1725233446936,-500.0,0.00024931,2]
[336888065,1725233446947,-500.0,0.00024931,2]
[336888066,1725233446958,-763.69,0.00024931,2]
[336888067,1725233446967,-500.0,0.00024931,2]
[336888068,1725233446976,-500.0,0.00024931,2]
[336888069,1725233446985,-500.0,0.00024931,2]
[336888070,1725233446994,-500.0,0.00024931,2]
[336888071,1725233447003,-1013.08,0.00024931,2]
[336888072,1725233447013,-500.0,0.00024931,2]
[336888073,1725233447022,-500.0,0.00024931,2]
[336888074,1725233447031,-500.0,0.00024931,2]
[336888075,1725233447041,-1349.69,0.00024931,2]
[336888076,1725233447054,-526.21,0.00024931,2]
[336888077,1725233447063,-500.0,0.00024931,2]
[336888078,1725233447072,-500.0,0.00024931,2]
[336888079,1725233447081,-500.0,0.00024931,2]
[336888080,1725233447090,-503.44457753,0.00024931,2]
[336888081,1725233447099,-500.0,0.00024931,2]
[336888082,1725233447108,-344.95063862,0.00024931,2]
[336888083,1725233447117,-500.0,0.00024931,2]
[336888084,1725233447128,-500.0,0.00024931,2]
[336888085,1725233447139,-500.0,0.00024931,2]
[336888086,1725233447150,-369.62122667,0.00024931,2]
[336888087,1725233447161,-500.0,0.00024931,2]
[336888088,1725233447170,-500.0,0.00024931,2]
[336888089,1725233447179,-500.0,0.00024931,2]
[336888090,1725233447189,-500.0,0.00024931,2]
[336888091,1725233447198,-500.0,0.00024931,2]
[336888092,1725233447208,-500.0,0.00024931,2]
[336888093,1725233447217,-587.44,0.00024931,2]
[336888094,1725233447226,-500.0,0.00024931,2]
[336888095,1725233447235,-268.96457699,0.00024931,2]
[336888096,1725233447244,-500.0,0.00024931,2]
[336888097,1725233447253,-607.58,0.00024931,2]
[336888098,1725233447262,-500.0,0.00024931,2]
[336888099,1725233447272,-500.0,0.00024931,2]
[336888100,1725233447281,-500.0,0.00024931,2]
[336888101,1725233447290,-500.0,0.00024931,2]
[336888102,1725233447301,-500.0,0.00024931,2]
[336888103,1725233447311,-500.0,0.00024931,2]
[336888104,1725233447321,-392.50524189,0.00024931,2]
[336888105,1725233447330,-500.0,0.00024931,2]
[336888106,1725233447339,-4139.23,0.00024931,2]
[336888107,1725233447349,-500.0,0.00024931,2]
[336888108,1725233447358,-500.0,0.00024931,2]
[336888109,1725233447367,-500.0,0.00024931,2]
[336888110,1725233447377,-500.0,0.00024931,2]
[336888111,1725233447386,-500.0,0.00024931,2]
[336888112,1725233447396,-500.0,0.00024931,2]
[336888113,1725233447406,-500.0,0.00024931,2]
[336888114,1725233447416,-500.0,0.00024931,2]
[336888115,1725233447426,-500.0,0.00024931,2]
[336888116,1725233447435,-500.0,0.00024931,2]
[336888117,1725233447445,-500.0,0.00024931,2]
[336888118,1725233447454,-500.0,0.00024931,2]
[336888119,1725233447463,-500.0,0.00024931,2]
[336888120,1725233447472,-500.0,0.00024931,2]
[336888121,1725233447482,-1325.14,0.00024931,2]
[336888122,1725233447491,-500.0,0.00024931,2]
[336888123,1725233447500,-500.0,0.00024931,2]
[336888124,1725233447510,-500.0,0.00024931,2]
[336888125,1725233447522,-672.27,0.00024931,2]
[336888126,1725233447532,-500.0,0.00024931,2]
[336888127,1725233447543,-500.0,0.00024931,2]
[336888128,1725233447556,-500.0,0.00024931,2]
[336888129,1725233447565,-639.87,0.00024931,2]
[336888130,1725233447574,-500.0,0.00024931,2]
[336888131,1725233447583,-500.0,0.00024931,2]
[336888132,1725233447592,-870.86,0.00024931,2]
[336888133,1725233447601,-500.0,0.00024931,2]
[336888134,1725233447610,-500.0,0.00024931,2]
[336888135,1725233447620,-500.0,0.00024931,2]
[336888136,1725233447629,-500.0,0.00024931,2]
[336888137,1725233447637,-500.0,0.00024931,2]
[336888138,1725233447646,-500.0,0.00024931,2]
[336888139,1725233447655,-689.79,0.00024931,2]
[336888140,1725233447664,-500.0,0.00024931,2]
[336888141,1725233447674,-759.55,0.00024931,2]
[336888142,1725233447683,-500.0,0.00024931,2]
[336888143,1725233447692,-500.0,0.00024931,2]
[336888144,1725233447702,-500.0,0.00024931,2]
[336888145,1725233447711,-500.0,0.00024931,2]
[336888146,1725233447721,-850.64,0.00024931,2]
[336888148,1725233447730,-500.0,0.00024931,2]
[336888150,1725233447743,-500.0,0.00024931,2]
[336888152,1725233447752,-500.0,0.00024931,2]
[336888153,1725233447762,-500.0,0.00024931,2]
[336888154,1725233447772,-500.0,0.00024931,2]
[336888155,1725233447783,-500.0,0.00024931,2]
[336888156,1725233447796,-500.60029775,0.00024931,2]
[336888157,1725233447809,-500.0,0.00024931,2]
[336888158,1725233447819,-352.40296083,0.00024931,2]
[336888159,1725233447829,-500.0,0.00024931,2]
[336888160,1725233447838,-500.0,0.00024931,2]
[336888161,1725233447848,-500.0,0.00024931,2]
[336888162,1725233447857,-500.0,0.00024931,2]
[336888163,1725233447868,-500.0,0.00024931,2]
[336888164,1725233447878,-500.0,0.00024931,2]
[336888165,1725233447887,-271.67780194,0.00024931,2]
[336888166,1725233447897,-500.0,0.00024931,2]
[336888167,1725233447908,-500.0,0.00024931,2]
[336888168,1725233447918,-500.0,0.00024931,2]
[336888169,1725233447927,-500.0,0.00024931,4]
[336888170,1725233447937,-504.55853373,0.00024931,2]
[336888171,1725233447947,-500.0,0.00024931,2]
[336888172,1725233447956,-500.0,0.00024931,2]
[336888173,1725233447967,-500.0,0.00024931,2]
[336888174,1725233447977,-669.82,0.00024931,2]
[336888175,1725233447986,-500.0,0.00024931,2]
[336888176,1725233447995,-500.0,0.00024931,2]
[336888177,1725233448005,-500.0,0.00024931,2]
[336888178,1725233448015,-578.34,0.00024931,2]
[336888179,1725233448024,-647.61,0.00024931,2]
[336888180,1725233448034,-1239.9,0.00024931,2]
[336888181,1725233448044,-500.0,0.00024931,2]
[336888182,1725233448055,-501.75064935,0.00024931,2]
[336888183,1725233448064,-500.0,0.00024931,2]
[336888184,1725233448074,-500.0,0.00024931,2]
[336888185,1725233448083,-500.0,0.00024931,2]
[336888186,1725233448094,-500.0,0.00024931,2]
[336888187,1725233448103,-500.0,0.00024931,2]
[336888188,1725233448114,-508.46636851,0.00024931,2]
[336888189,1725233448124,-500.0,0.00024931,2]
[336888190,1725233448133,-1014.8,0.00024931,2]
[336888191,1725233448143,-500.0,0.00024931,2]
[336888192,1725233448152,-500.0,0.00024931,2]
[336888193,1725233448162,-500.0,0.00024931,2]
[336888194,1725233448171,-500.0,0.00024931,2]
[336888195,1725233448181,-955.98,0.00024931,2]
[336888196,1725233448191,-366.88312887,0.00024931,2]
[336888197,1725233448200,-500.0,0.00024931,2]
[336888198,1725233448210,-500.0,0.00024931,2]
[336888199,1725233448219,-500.0,0.00024931,2]
[336888200,1725233448229,-523.13785599,0.00024931,2]
[336888201,1725233448239,-500.0,0.00024931,2]
[336888202,1725233448248,-500.0,0.00024931,2]
[336888203,1725233448258,-1146.54,0.00024931,2]
[336888204,1725233448268,-500.0,0.00024931,2]
[336888205,1725233448278,-500.0,0.00024931,2]
[336888206,1725233448287,-670.81,0.00024931,2]
[336888207,1725233448298,-642.26090627,0.00024931,2]
[336888208,1725233448307,-500.0,0.00024931,2]
[336888209,1725233448316,-500.0,0.00024931,2]
[336888210,1725233448326,-500.0,0.00024931,2]
[336888211,1725233448335,-781.11,0.00024931,2]
[336888212,1725233448345,-500.0,0.00024931,2]
[336888213,1725233448500,-500.0,0.00024931,2]
[336888214,1725233448528,-500.0,0.00024931,2]
[336888215,1725233448538,-500.0,0.00024931,2]
[336888216,1725233448548,-500.0,0.00024931,2]
[336888217,1725233448558,-500.0,0.00024931,2]
[336888218,1725233448567,-1712.49,0.00024931,2]
[336888219,1725233448577,-500.0,0.00024931,2]
[336888220,1725233448586,-500.0,0.00024931,2]
[336888221,1725233448596,-500.0,0.00024931,2]
[336888222,1725233448605,-500.0,0.00024931,2]
[336888223,1725233448614,-500.0,0.00024931,2]
[336888224,1725233448624,-510.58988654,0.00024931,2]
[336888225,1725233448633,-500.0,0.00024931,2]
[336888226,1725233448643,-500.0,0.00024931,2]
[336888227,1725233448652,-500.0,0.00024931,2]
[336888228,1725233448662,-500.0,0.00024931,2]
[336888229,1725233448671,-2272.43,0.00024931,2]
[336888230,1725233448681,-500.0,0.00024931,2]
[336888231,1725233448691,-500.0,0.00024931,2]
[336888232,1725233448701,-189.63033718,0.00024931,2]
[336888233,1725233448711,-500.0,0.00024931,2]
[336888234,1725233448720,-500.0,0.00024931,2]
[336888235,1725233448729,-500.0,0.00024931,2]
[336888236,1725233448739,-500.0,0.00024931,2]
[336888237,1725233448749,-866.18,0.00024931,2]
[336888238,1725233448758,-500.0,0.00024931,2]
[336888239,1725233448769,-500.0,0.00024931,2]
[336888240,1725233448779,-500.0,0.00024931,2]
[336888241,1725233448788,-500.0,0.00024931,2]
[336888242,1725233448801,-503.75109237,0.00024931,2]
[336888243,1725233448811,-580.07,0.00024931,2]
[336888244,1725233448820,-1098.35,0.00024931,2]
[336888245,1725233448830,-510.32,0.00024931,2]
[336888246,1725233448840,-500.0,0.00024931,2]
[336888247,1725233448850,-2246.05,0.00024931,2]
[336888248,1725233448859,-500.0,0.00024931,2]
[336888249,1725233448869,-719.56,0.00024931,2]
[336888250,1725233448878,-500.0,0.00024931,2]
[336888251,1725233448888,-1653.39,0.00024931,2]
[336888252,1725233448898,-1549.62,0.00024931,2]
[336888253,1725233448907,-500.0,0.00024931,2]
[336888254,1725233448917,-909.05,0.00024931,2]
[336888255,1725233448927,-884.34,0.00024931,2]
[336888256,1725233448936,-500.0,0.00024931,2]
[336888257,1725233448946,-500.0,0.00024931,2]
[336888258,1725233448955,-2280.47,0.00024931,2]
[336888259,1725233448965,-500.0,0.00024931,2]
[336888260,1725233448974,-500.0,0.00024931,2]
[336888261,1725233448984,-500.0,0.00024931,2]
[336888262,1725233448994,-1522.86,0.00024931,2]
[336888263,1725233449003,-500.0,0.00024931,2]
[336888264,1725233449017,-596.72,0.00024931,2]
[336888265,1725233449027,-1975.9,0.00024931,2]
[336888266,1725233449036,-500.0,0.00024931,2]